bitfinex/quotes_SOLUSD_20250609
["timestamp","ask_amount","ask_price","bid_price","bid_amount"]
[1749469880601,15.53489343,155.72,155.68,6.42331796]
[1749469880809,41.53489343,155.73,155.69,18.79181043]
[1749469881318,15.53489343,155.72,155.69,18.79181043]
[1749469881708,26.0,155.73,155.69,18.79181043]
[1749469882007,15.53489343,155.72,155.68,21.95821139]
[1749469882207,26.0,155.73,155.69,34.32670386]
[1749469882408,26.0,155.73,155.7,15.53489343]
[1749469882603,26.0,155.73,155.7,21.9572355]
[1749469883040,26.0,155.73,155.7,6.42234207]
[1749469883238,35.53089641,155.73,155.7,6.42234207]
[1749469883614,9.53089641,155.72,155.68,9.53089641]
[1749469883825,9.53089641,155.72,155.68,53.02]
[1749469884135,26.0,155.73,155.67,18.79181043]
[1749469884305,9.53089641,155.71,155.67,81.34270684]
[1749469884507,9.53089641,155.7,155.67,17.90384531]
[1749469884733,9.53089641,155.69,155.66,25.07386324]
[1749469885033,9.53089641,155.68,155.65,17.9045311]
[1749469885437,9.53089641,155.68,155.65,6.4245311]
[1749469886016,9.53089641,155.67,155.64,6.4249187]
[1749469886235,32.4226653,155.7,155.63,25.0749853]
[1749469886403,9.53089641,155.68,155.64,0.14216157]
[1749469886608,9.53089641,155.68,155.64,6.56706205]
[1749469886809,9.53089641,155.66,155.62,18.64964886]
[1749469887232,9.53089641,155.66,155.61,18.64964886]
[1749469887440,9.53089641,155.65,155.61,25.07597107]
[1749469887942,26.0,155.67,155.58,16.06802071]
[1749469888151,9.53089641,155.64,155.6,18.64964886]
[1749469888819,1.542,155.73,155.62,9.53089641]
[1749469889024,26.0,155.69,155.63,28.18054527]
[1749469889225,9.53089641,155.68,155.63,18.64964886]
[1749469889424,9.53089641,155.66,155.62,18.64964886]
[1749469889736,9.53089641,155.66,155.63,0.14216157]
[1749469889935,9.53089641,155.64,155.61,18.79181043]
[1749469890623,9.53089641,155.64,155.62,6.42590926]
[1749469890949,9.53089641,155.65,155.62,6.42590926]
[1749469891632,9.53089641,155.7,155.65,18.64964886]
[1749469891843,35.53089641,155.7,155.65,28.18054527]
[1749469892416,35.53089641,155.7,155.67,6.42384531]
[1749469892941,35.53089641,155.7,155.66,6.42411055]
[1749469893141,9.53089641,155.69,155.65,25.07418034]
[1749469893447,9.53089641,155.69,155.65,34.60507675]
[1749469894637,35.53089641,155.7,155.65,34.60507675]
[1749469896137,35.53089641,155.7,155.65,25.07418034]
[1749469896336,9.53089641,155.69,155.65,34.60507675]
[1749469897132,37.89964886,155.61,155.49,0.36563407]
[1749469897437,26.0,155.6,155.53,9.53089641]
[1749469897616,9.53089641,155.58,155.49,0.36563407]
[1749469897813,9.53089641,155.61,155.55,9.53089641]
[1749469898016,9.53089641,155.61,155.56,11.48]
[1749469898218,9.53089641,155.6,155.56,11.48]
[1749469898634,15.95769758,155.6,155.56,11.48]
[1749469898855,9.53089641,155.59,155.56,11.48]
[1749469899325,21.98785991,155.6,155.56,11.48]
[1749469899523,15.56105874,155.59,155.56,11.48]
[1749469899730,6.42680117,155.6,155.56,11.48]
[1749469899731,15.56105874,155.58,155.56,11.48]
[1749469899942,15.56105874,155.59,155.56,11.48]
[1749469900343,15.56105874,155.58,155.56,11.48]
[1749469901148,15.56105874,155.59,155.56,11.48]
[1749469902249,30.78087734,155.62,155.56,27.04105874]
[1749469902451,15.56105874,155.6,155.53,6.57178929]
[1749469902617,15.56105874,155.59,155.54,75.51026223]
[1749469903044,32.42656919,155.61,155.55,11.48]
[1749469903045,26.0,155.61,155.55,11.48]
[1749469903243,15.56105874,155.59,155.55,11.48]
[1749469903439,15.56105874,155.6,155.55,27.04105874]
[1749469903645,15.56105874,155.6,155.53,6.42951092]
[1749469903646,15.56105874,155.59,155.56,11.48]
[1749469904147,26.0,155.62,155.55,11.48]
[1749469904148,15.56105874,155.57,155.55,11.48]
[1749469904643,15.56105874,155.56,155.53,11.48]
[1749469904845,15.56105874,155.55,155.53,11.48]
[1749469905227,15.56105874,155.54,155.5,6.43074467]
[1749469905428,15.56105874,155.53,155.51,11.48]
[1749469905826,15.56105874,155.53,155.49,6.79679596]
[1749469906031,15.56105874,155.52,155.5,11.48]
[1749469906241,15.56105874,155.51,155.5,11.48]
[1749469906444,15.56105874,155.51,155.49,11.84563407]
[1749469906640,15.56105874,155.5,155.49,11.84563407]
[1749469907136,15.56105874,155.5,155.49,0.36563407]
[1749469907531,26.0,155.52,155.49,0.36563407]
[1749469907738,15.56105874,155.5,155.49,0.36563407]
[1749469908667,26.0,155.53,155.49,0.36563407]
[1749469908862,15.56105874,155.5,155.49,0.36563407]
[1749469909161,21.9919269,155.5,155.49,0.36563407]
[1749469909327,15.56105874,155.5,155.49,0.36563407]
[1749469910239,32.43004115,155.52,155.49,0.36563407]
[1749469910430,15.56105874,155.5,155.49,0.36563407]
[1749469911243,21.9919269,155.5,155.49,0.36563407]
[1749469911432,15.56105874,155.5,155.49,0.36563407]
[1749469911631,15.56105874,155.52,155.49,0.36563407]
[1749469911831,2.3214,155.62,155.51,15.56105874]
[1749469912038,15.56105874,155.56,155.5,6.5286]
[1749469912247,6.42632221,155.61,155.5,22.08965874]
[1749469912248,15.56105874,155.55,155.5,22.08965874]
[1749469912552,15.56105874,155.54,155.5,6.5286]
[1749469912761,15.56105874,155.53,155.5,12.95926611]
[1749469912932,15.56105874,155.52,155.5,6.5286]
[1749469913356,15.56105874,155.52,155.5,12.95940317]
[1749469913561,15.56105874,155.52,155.5,6.5286]
[1749469913739,26.0,155.54,155.49,12.22563407]
[1749469914270,15.56105874,155.51,155.49,12.22563407]
[1749469914436,26.0,155.54,155.49,12.22563407]
[1749469914637,15.56105874,155.5,155.49,0.36563407]
[1749469916229,15.56105874,155.52,155.49,0.36563407]
[1749469916432,15.56105874,155.51,155.49,0.36563407]
[1749469916659,15.56105874,155.52,155.49,0.36563407]
[1749469917335,15.56105874,155.51,155.49,0.36563407]
[1749469917536,6.42962772,155.53,155.49,0.36563407]
[1749469918039,15.56105874,155.53,155.49,22.35785229]
[1749469918251,15.56105874,155.53,155.49,0.36563407]
[1749469918462,15.56105874,155.53,155.49,6.79680119]
[1749469918664,26.0,155.54,155.49,22.35785993]
[1749469918835,15.56105874,155.53,155.49,22.35785993]
[1749469919160,41.56105874,155.54,155.49,22.35785993]
[1749469919333,15.56105874,155.54,155.49,22.35785993]
[1749469919739,41.56105874,155.55,155.5,15.56105874]
[1749469920128,41.56105874,155.55,155.51,6.43045463]
[1749469920348,41.56105874,155.55,155.5,6.43073511]
[1749469920945,6.42549636,155.63,155.54,15.56105874]
[1749469921147,15.56105874,155.6,155.56,15.56105874]
[1749469921348,15.56105874,155.6,155.55,15.56105874]
[1749469921750,15.56105874,155.59,155.55,15.56105874]
[1749469921936,41.56105874,155.6,155.55,15.56105874]
[1749469922137,41.56105874,155.6,155.56,6.42838776]
[1749469922441,15.56105874,155.6,155.56,6.42838776]
[1749469922959,15.56105874,155.57,155.52,6.0038]
[1749469923260,15.56105874,155.55,155.52,6.0038]
[1749469923767,15.56105874,155.56,155.52,12.43379957]
[1749469923956,15.56105874,155.56,155.52,27.99485831]
[1749469924450,15.56105874,155.56,155.52,12.43379957]
[1749469924650,15.56105874,155.56,155.52,27.99485831]
[1749469924965,15.56105874,155.57,155.52,27.99485831]
[1749469925261,15.56105874,155.56,155.52,12.43379957]
[1749469925464,15.56105874,155.56,155.52,27.99485831]
[1749469925649,15.56105874,155.57,155.52,27.99485831]
[1749469926141,15.56105874,155.57,155.53,15.56105874]
[1749469926343,15.56105874,155.57,155.52,27.99485831]
[1749469928376,26.0,155.58,155.52,27.99485831]
[1749469928671,41.56105874,155.58,155.53,15.56105874]
[1749469928971,146.1,155.66,155.57,15.56105874]
[1749469929173,15.56105874,155.61,155.57,11.86]
[1749469930057,26.0,155.62,155.57,11.86]
[1749469930253,15.56105874,155.61,155.57,11.86]
[1749469930456,15.56105874,155.6,155.57,9.25713542]
[1749469931153,15.56105874,155.61,155.57,15.68494686]
[1749469931969,11.32874456,155.61,155.57,15.68494686]
[1749469935353,9.54643965,155.61,155.57,15.68494686]
[1749469936266,9.54643965,155.62,155.58,9.54643965]
[1749469936554,9.54643965,155.61,155.57,25.23138651]
[1749469936761,9.54643965,155.62,155.57,25.23138651]
[1749469937681,15.97249239,155.62,155.57,25.23138651]
[1749469938282,9.54643965,155.62,155.57,25.23138651]
[1749469938477,32.42516723,155.64,155.59,9.54643965]
[1749469938657,9.54643965,155.63,155.59,9.54643965]
[1749469938858,32.42516723,155.64,155.59,9.54643965]
[1749469939085,9.54643965,155.63,155.59,9.54643965]
[1749469939273,15.97220556,155.63,155.59,9.54643965]
[1749469939586,9.54643965,155.62,155.58,15.97397096]
[1749469940371,32.42526551,155.64,155.59,9.54643965]
[1749469940659,9.54643965,155.63,155.58,15.97397096]
[1749469942456,9.54643965,155.63,155.59,9.54643965]
[1749469942667,35.54643965,155.64,155.6,16.01393965]
[1749469942871,26.0,155.64,155.6,16.01393965]
[1749469943696,11.18548621,155.67,155.62,9.54643965]
[1749469943894,15.97039859,155.67,155.62,9.54643965]
[1749469944067,9.54643965,155.66,155.62,9.54643965]
[1749469944760,9.54643965,155.66,155.62,15.97230884]
[1749469944960,9.54643965,155.66,155.62,6.42586919]
[1749469945161,9.54643965,155.66,155.62,15.97230884]
[1749469945886,9.54643965,155.67,155.62,15.97230884]
[1749469946071,6.42361205,155.68,155.62,15.97230884]
[1749469946272,15.9700517,155.68,155.63,21.16643965]
[1749469946484,9.54643965,155.67,155.63,21.16643965]
[1749469947071,9.54643965,155.67,155.63,27.59188177]
[1749469947886,15.97032376,155.67,155.63,27.59188177]
[1749469948500,9.54643965,155.67,155.63,27.59189969]
[1749469948808,15.97032862,155.67,155.63,11.62]
[1749469948973,15.97032862,155.67,155.63,21.16643965]
[1749469949293,15.97003639,155.68,155.63,27.5918968]
[1749469949482,9.54643965,155.67,155.63,11.62]
[1749469949684,9.54643965,155.65,155.63,11.62]
[1749469950567,9.54643965,155.64,155.63,11.62]
[1749469950774,9.54643965,155.64,155.58,11.62]
[1749469951078,9.54643965,155.61,155.58,11.62]
[1749469951293,15.97283816,155.61,155.58,11.62]
[1749469951884,15.97281856,155.61,155.58,11.62]
[1749469952678,9.54643965,155.61,155.58,11.62]
[1749469953179,9.54643965,155.61,155.58,18.04755519]
[1749469953380,9.54643965,155.61,155.58,11.62]
[1749469954294,6.42637608,155.61,155.58,11.62]
[1749469954471,9.54643965,155.6,155.58,11.62]
[1749469955373,9.54643965,155.59,155.58,11.62]
[1749469957181,15.97358792,155.59,155.58,11.62]
[1749469957569,15.97358792,155.59,155.53,53.06]
[1749469957795,9.54643965,155.55,155.53,11.62]
[1749469958374,9.54643965,155.54,155.53,11.62]
[1749469960007,9.54643965,155.54,155.53,11.62]
[1749469960572,9.54643965,155.56,155.53,11.62]
[1749469963891,9.54643965,155.55,155.53,11.62]
[1749469965011,9.54643965,155.54,155.53,11.62]
[1749469965680,9.54643965,155.55,155.53,11.62]
[1749469967214,15.9752463,155.55,155.53,11.62]
[1749469967886,9.54643965,155.55,155.53,11.62]
[1749469969207,15.97526813,155.55,155.53,11.62]
[1749469970098,9.54643965,155.55,155.53,11.62]
[1749469970498,9.54643965,155.56,155.53,18.0495372]
[1749469970703,9.54643965,155.57,155.53,11.62]
[1749469970884,9.54643965,155.57,155.53,18.04954148]
[1749469971082,9.54643965,155.56,155.53,11.62]
[1749469971316,9.54643965,155.56,155.53,18.04956699]
[1749469972409,35.54643965,155.57,155.53,27.59600664]
[1749469972809,35.54643965,155.57,155.53,18.04956699]
[1749469973413,37.21072774,155.61,155.54,9.54643965]
[1749469973588,26.0,155.6,155.55,9.54643965]
[1749469973789,9.54643965,155.59,155.55,9.54643965]
[1749469974314,26.0,155.6,155.56,9.54643965]
[1749469975301,35.54643965,155.6,155.57,6.42797454]
[1749469976010,9.54643965,155.6,155.57,6.42797454]
[1749469977403,9.54643965,155.6,155.56,6.42838776]
[1749469978391,9.54643965,155.6,155.56,15.97482741]
[1749469979089,9.54643965,155.59,155.55,15.75903965]
[1749469979415,9.54643965,155.6,155.55,22.18770361]
[1749469979715,9.54643965,155.6,155.56,9.54643965]
[1749469980616,9.54643965,155.61,155.57,9.54643965]
[1749469981405,9.54643965,155.61,155.56,9.54643965]
[1749469982116,9.54643965,155.59,155.55,12.64126396]
[1749469982492,9.54643965,155.59,155.55,22.18770361]
[1749469983805,9.54643965,155.6,155.55,22.18770361]
[1749469985829,9.54643965,155.61,155.56,9.54643965]
[1749469986118,9.54643965,155.6,155.55,22.18770361]
[1749469986423,9.54643965,155.59,155.54,11.05593965]
[1749469986601,9.54643965,155.57,155.54,1.5095]
[1749469986799,9.54643965,155.57,155.53,27.27569443]
[1749469987906,9.54643965,155.56,155.53,11.3]
[1749469988705,9.54643965,155.56,155.53,17.72952495]
[1749469989020,9.54643965,155.57,155.53,17.72952495]
[1749469989198,6.42673521,155.6,155.53,27.2759646]
[1749469989616,9.54643965,155.58,155.53,27.2759646]
[1749469989825,9.54643965,155.57,155.53,11.3]
[1749469989991,9.54643965,155.56,155.53,11.3]
[1749469990196,11.21096738,155.6,155.53,17.72957784]
[1749469990497,9.54643965,155.57,155.53,17.72957784]
[1749469991015,9.54643965,155.57,155.53,11.3]
[1749469991622,9.54643965,155.56,155.53,11.3]
[1749469991930,9.54643965,155.55,155.51,12.5699106]
[1749469992130,9.54643965,155.55,155.51,6.1396]
[1749469992315,9.54643965,155.54,155.51,6.1396]
[1749469992825,11.21220671,155.57,155.51,22.11635476]
[1749469993017,9.54643965,155.55,155.51,22.11635476]
[1749469993511,9.54643965,155.55,155.51,12.56991511]
[1749469994920,9.54643965,155.54,155.51,6.43031511]
[1749469995811,4.78423217,155.57,155.52,9.54643965]
[1749469996017,14.33067182,155.57,155.53,9.54643965]
[1749469996323,9.54643965,155.57,155.53,9.54643965]
[1749469996822,9.54643965,155.57,155.53,15.97587129]
[1749469997126,14.33067182,155.57,155.53,15.97587129]
[1749469997339,4.78423217,155.57,155.53,15.97587129]
[1749469997642,9.54643965,155.58,155.53,22.23467129]
[1749469997805,9.54643965,155.57,155.53,22.23467129]
[1749469998308,9.54643965,155.57,155.53,12.68823164]
[1749469998828,14.33067182,155.57,155.53,12.68823164]
[1749469999522,14.33067182,155.56,155.53,6.2588]
[1749470000322,4.78423217,155.56,155.53,15.80523965]
[1749470000629,4.78423217,155.56,155.53,6.2588]
[1749470002218,9.54643965,155.54,155.5,17.73080192]
[1749470002537,14.33067182,155.54,155.5,17.73080192]
[1749470002710,9.54643965,155.54,155.5,17.73080192]
[1749470002909,14.33067182,155.54,155.5,17.73080192]
[1749470003128,4.78423217,155.54,155.5,27.27724157]
[1749470003317,9.54643965,155.55,155.5,27.27724157]
[1749470003522,14.33067182,155.55,155.5,27.27724157]
[1749470003720,9.54643965,155.54,155.5,17.73080192]
[1749470004040,14.33067182,155.54,155.5,17.73080192]
[1749470004206,9.54643965,155.54,155.5,17.73080192]
[1749470004642,26.0,155.58,155.5,27.27724157]
[1749470004643,14.33067182,155.55,155.5,27.27724157]
[1749470004850,4.78423217,155.54,155.5,27.27724157]
[1749470005130,9.54643965,155.55,155.5,27.27724157]
[1749470005353,4.78423217,155.56,155.5,27.27724157]
[1749470005521,14.33067182,155.55,155.51,6.43028006]
[1749470005722,14.33067182,155.55,155.51,15.97671971]
[1749470007113,14.33067182,155.55,155.51,6.43028006]
[1749470008519,14.33067182,155.54,155.51,6.43028006]
[1749470009511,9.54643965,155.54,155.51,6.43028006]
[1749470009737,14.33067182,155.54,155.51,6.43028006]
[1749470009934,9.54643965,155.54,155.51,6.43028006]
[1749470010126,14.33067182,155.54,155.51,6.43028006]
[1749470010337,9.54643965,155.54,155.51,6.43028006]
[1749470010637,14.33067182,155.54,155.5,27.2771216]
[1749470011839,14.33067182,155.55,155.5,27.2771216]
[1749470012138,9.54643965,155.53,155.5,17.73068195]
[1749470012331,9.54643965,155.53,155.5,11.3]
[1749470012861,9.54643965,155.53,155.5,17.73085714]
[1749470013913,4.78423217,155.54,155.5,27.27729679]
[1749470014129,15.97546132,155.55,155.5,27.27729679]
[1749470014543,20.75969349,155.55,155.5,27.27729679]
[1749470014847,15.97546132,155.55,155.5,27.27729679]
[1749470015139,9.54643965,155.55,155.5,27.27729679]
[1749470015343,14.33067182,155.55,155.5,27.27729679]
[1749470015945,9.54643965,155.54,155.5,27.27729679]
[1749470016152,14.33067182,155.54,155.5,27.27729679]
[1749470017146,9.54643965,155.54,155.5,27.27729679]
[1749470017342,14.33067182,155.54,155.5,27.27729679]
[1749470017641,9.54643965,155.54,155.5,27.27729679]
[1749470017849,9.54643965,155.54,155.5,17.73085714]
[1749470018144,4.78423217,155.54,155.5,43.3544672]
[1749470018341,9.54643965,155.55,155.51,9.54643965]
[1749470018541,4.78423217,155.55,155.51,9.54643965]
[1749470018843,9.54643965,155.55,155.51,9.54643965]
[1749470019735,9.54643965,155.55,155.5,27.27729679]
[1749470020041,9.54643965,155.54,155.5,27.27729679]
[1749470020932,4.78423217,155.55,155.5,27.27729679]
[1749470021449,14.33067182,155.55,155.5,27.27729679]
[1749470022351,9.54643965,155.54,155.5,27.27729679]
[1749470022555,15.97534528,155.55,155.5,27.27729679]
[1749470022860,20.75957745,155.55,155.5,27.27729679]
[1749470023041,15.97534528,155.55,155.5,27.27729679]
[1749470023235,20.75957745,155.55,155.5,27.27729679]
[1749470023440,15.97534528,155.55,155.5,27.27729679]
[1749470023639,4.78423217,155.54,155.5,27.27729679]
[1749470024957,4.80745766,155.54,155.5,27.27729679]
[1749470026137,4.80745766,155.55,155.5,27.27729679]
[1749470026350,14.35389731,155.55,155.5,27.27729679]
[1749470026960,4.80745766,155.54,155.5,27.27729679]
[1749470027654,4.80745766,155.54,155.51,9.54643965]
[1749470027880,14.35540157,155.56,155.52,9.54643965]
[1749470028051,4.80896192,155.55,155.53,9.54643965]
[1749470028249,4.80896192,155.57,155.53,9.54643965]
[1749470028558,4.80896192,155.56,155.53,9.54643965]
[1749470028766,4.80896192,155.55,155.53,9.54643965]
[1749470028939,4.80896192,155.57,155.53,9.54643965]
[1749470029140,4.80896192,155.56,155.54,6.42921435]
[1749470029338,4.80896192,155.59,155.55,9.54643965]
[1749470029540,4.80896192,155.58,155.56,9.54643965]
[1749470029758,7.53072208,155.63,155.57,9.54643965]
[1749470029759,6.42607312,155.62,155.57,9.54643965]
[1749470029964,4.81032707,155.61,155.57,9.54643965]
[1749470030133,4.81032707,155.6,155.57,9.54643965]
[1749470030338,4.81032707,155.59,155.57,9.54643965]
[1749470030553,4.81032707,155.58,155.57,9.54643965]
[1749470030763,14.35676672,155.61,155.57,15.9743938]
[1749470030938,4.81032707,155.6,155.56,26.89464166]
[1749470031138,4.81032707,155.59,155.56,26.89464166]
[1749470031339,4.81032707,155.58,155.56,26.89464166]
[1749470031639,4.81024599,155.6,155.56,26.89464166]
[1749470031846,4.81024599,155.59,155.56,26.89464166]
[1749470032163,15.97281414,155.61,155.56,26.89464166]
[1749470032351,4.8099433,155.6,155.56,26.89464166]
[1749470032552,4.8099433,155.6,155.57,9.54643965]
[1749470033435,14.35638295,155.62,155.58,9.54643965]
[1749470033638,4.8099433,155.61,155.58,9.54643965]
[1749470033952,4.8099433,155.6,155.58,9.54643965]
[1749470034259,4.8099433,155.61,155.58,9.54643965]
[1749470034442,4.8099433,155.6,155.58,15.97396541]
[1749470034643,4.8099433,155.61,155.58,15.97396541]
[1749470034871,4.8099433,155.6,155.58,15.97396541]
[1749470035165,4.8099433,155.61,155.58,15.97396541]
[1749470035350,4.8099433,155.6,155.58,15.97396541]
[1749470035553,4.8099433,155.61,155.58,15.97396541]
[1749470036267,14.35638295,155.62,155.58,15.97396541]
[1749470036565,4.8099433,155.61,155.58,15.97396541]
[1749470037138,14.35638295,155.62,155.58,15.97396541]
[1749470037967,20.78229688,155.62,155.58,15.97396541]
[1749470038168,4.8099433,155.63,155.6,9.54643965]
[1749470038341,9.54643965,155.65,155.6,9.54643965]
[1749470038547,9.54643965,155.62,155.58,40.56]
[1749470039058,14.35638295,155.62,155.58,40.56]
[1749470039272,9.54643965,155.62,155.58,40.56]
[1749470039470,9.54643965,155.62,155.58,46.98736786]
[1749470039678,4.8099433,155.62,155.58,56.53380751]
[1749470039880,4.8099433,155.64,155.58,56.53380751]
[1749470040051,14.35638295,155.66,155.62,9.54643965]
[1749470040237,4.8099433,155.65,155.62,10.92]
[1749470040637,9.54643965,155.65,155.62,10.92]
[1749470041252,9.54643965,155.63,155.62,10.92]
[1749470041459,9.54643965,155.63,155.59,1.6519]
[1749470042055,15.97199639,155.63,155.59,1.6519]
[1749470042645,6.42467073,155.65,155.59,17.62548681]
[1749470042844,14.35638295,155.64,155.59,17.62548681]
[1749470043275,9.54643965,155.64,155.59,17.62548681]
[1749470044265,15.97157948,155.64,155.59,17.62548681]
[1749470044464,9.54643965,155.64,155.59,17.62548681]
[1749470045062,15.97152734,155.64,155.59,17.62548681]
[1749470045575,11.23476921,155.65,155.6,9.54643965]
[1749470045879,9.54643965,155.63,155.59,17.62548681]
[1749470046385,6.42443263,155.66,155.6,9.54643965]
[1749470046685,14.35638295,155.67,155.63,9.54643965]
[1749470046865,4.8099433,155.7,155.63,9.54643965]
[1749470047053,9.54643965,155.68,155.63,9.54643965]
[1749470047555,35.54643965,155.68,155.63,9.54643965]
[1749470047760,9.54643965,155.67,155.62,9.83076279]
[1749470047958,41.97027131,155.68,155.63,9.54643965]
[1749470048159,9.54643965,155.67,155.62,16.25639979]
[1749470049784,40.35638295,155.7,155.66,9.54643965]
[1749470049988,4.8099433,155.72,155.68,9.54643965]
[1749470050287,9.54643965,155.71,155.67,9.54643965]
[1749470050584,9.54643965,155.71,155.66,16.12516279]
[1749470051359,9.54643965,155.71,155.67,9.54643965]
[1749470051563,9.54643965,155.71,155.66,6.57872314]
[1749470051777,15.96873511,155.71,155.67,9.54643965]
[1749470051981,26.0,155.73,155.67,15.97019776]
[1749470052156,9.54643965,155.72,155.68,9.54643965]
[1749470052356,35.54643965,155.73,155.68,9.54643965]
[1749470052558,35.54643965,155.73,155.69,9.54643965]
[1749470053365,26.0,155.73,155.69,9.54643965]
[1749470054268,32.42139241,155.73,155.69,9.54643965]
[1749470056693,32.42139241,155.73,155.7,9.54643965]
[1749470057794,26.0,155.73,155.7,9.54643965]
[1749470058564,32.42144163,155.73,155.7,9.54643965]
[1749470058790,15.96751685,155.74,155.7,9.54643965]
[1749470058963,41.96751685,155.74,155.7,9.54643965]
[1749470061184,26.0,155.74,155.7,15.96893675]
[1749470061495,41.96744598,155.74,155.7,9.54643965]
[1749470061898,9.54643965,155.73,155.68,40.54]
[1749470062074,9.54643965,155.72,155.68,50.08643965]
[1749470062769,9.54643965,155.72,155.68,40.54]
[1749470063169,9.54643965,155.72,155.68,46.9634209]
[1749470063584,9.54643965,155.72,155.68,56.50986055]
[1749470064891,6.42160946,155.73,155.68,56.50986055]
[1749470064892,15.96804911,155.73,155.68,56.50986055]
[1749470066181,9.54643965,155.73,155.69,9.54643965]
[1749470067392,9.54643965,155.73,155.69,15.96944295]
[1749470067691,15.96782322,155.73,155.69,15.96944295]
[1749470067899,15.96782322,155.73,155.69,9.54643965]
[1749470069002,15.96782322,155.73,155.69,15.96944881]
[1749470069183,9.54643965,155.73,155.69,15.96944881]
[1749470069387,15.96750239,155.74,155.7,9.54643965]
[1749470070180,9.54643965,155.74,155.7,9.54643965]
[1749470071900,9.54643965,155.74,155.7,15.96899155]
[1749470072408,15.96740833,155.74,155.7,9.54643965]
[1749470073896,15.96740833,155.74,155.69,6.42291136]
[1749470074093,15.96740833,155.74,155.69,15.96935101]
[1749470075490,15.96740833,155.74,155.69,26.84935101]
[1749470077614,9.54643965,155.72,155.69,10.88]
[1749470077813,9.54643965,155.71,155.69,10.88]
[1749470078923,35.54643965,155.73,155.69,20.42643965]
[1749470079097,26.0,155.73,155.69,26.84939661]
[1749470080016,6.42096868,155.74,155.7,9.54643965]
[1749470080220,15.96740833,155.74,155.7,9.54643965]
[1749470080441,32.42064174,155.75,155.7,9.54643965]
[1749470080623,41.96708139,155.75,155.7,9.54643965]
[1749470081211,35.54643965,155.75,155.71,9.54643965]
[1749470081601,26.0,155.75,155.71,9.54643965]
[1749470081801,26.0,155.75,155.71,15.96862451]
[1749470082328,9.54643965,155.76,155.71,15.96862451]
[1749470082529,41.96624747,155.77,155.72,9.54643965]
[1749470083529,41.96624747,155.77,155.72,15.96819274]
[1749470083902,9.54643965,155.76,155.71,9.54643965]
[1749470084308,9.54643965,155.75,155.71,9.54643965]
[1749470084501,9.54643965,155.75,155.71,0.28432314]
[1749470084729,32.41980782,155.77,155.7,9.54643965]
[1749470084730,9.54643965,155.74,155.7,9.54643965]
[1749470085034,9.54643965,155.72,155.69,10.88]
[1749470086039,9.54643965,155.71,155.69,10.88]
[1749470086905,9.54643965,155.7,155.69,10.88]
[1749470087529,9.54643965,155.7,155.66,6.2944]
[1749470087710,9.54643965,155.69,155.66,6.2944]
[1749470087906,9.54643965,155.68,155.65,12.4357]
[1749470091118,59.14964886,155.74,155.65,12.4357]
[1749470091119,1.6012,155.75,155.66,16.2546107]
[1749470091320,35.54643965,155.72,155.68,9.54643965]
[1749470091636,26.0,155.72,155.68,9.54643965]
[1749470091928,40.34273978,155.72,155.68,9.54643965]
[1749470092136,14.34273978,155.74,155.69,9.54643965]
[1749470092321,4.79630013,155.73,155.69,9.54643965]
[1749470092521,4.79630013,155.73,155.7,9.54643965]
[1749470092830,35.54643965,155.74,155.7,9.54643965]
[1749470092831,26.0,155.74,155.7,9.54643965]
[1749470093011,30.79630013,155.74,155.7,9.54643965]
[1749470093335,30.79630013,155.74,155.71,10.86]
[1749470093540,4.79630013,155.73,155.71,10.86]
[1749470093712,30.79630013,155.74,155.71,10.86]
[1749470094117,40.34273978,155.74,155.71,10.86]
[1749470094411,4.79630013,155.73,155.71,10.86]
[1749470094630,35.54643965,155.74,155.71,10.86]
[1749470094831,9.54643965,155.73,155.71,10.86]
[1749470095019,4.8042991,155.72,155.71,10.86]
[1749470095538,14.35073875,155.72,155.71,10.86]
[1749470096130,20.77252143,155.72,155.71,10.86]
[1749470096442,20.77252143,155.72,155.68,6.3511]
[1749470096613,14.35073875,155.71,155.67,10.86]
[1749470096823,9.54643965,155.71,155.67,10.86]
[1749470097216,9.54643965,155.71,155.67,26.83026631]
[1749470098740,9.54643965,155.71,155.67,20.40643965]
[1749470098741,15.96873442,155.71,155.67,20.40643965]
[1749470099037,14.35323303,155.7,155.67,10.86]
[1749470099423,15.96906801,155.7,155.67,10.86]
[1749470099621,9.54643965,155.7,155.67,10.86]
[1749470099843,9.54643965,155.7,155.66,6.42403359]
[1749470100339,9.54643965,155.68,155.65,1.5557]
[1749470100548,9.54643965,155.68,155.65,10.86]
[1749470100922,9.54643965,155.66,155.65,10.86]
[1749470101126,9.54643965,155.66,155.62,17.28565801]
[1749470101630,9.54643965,155.66,155.62,26.83209766]
[1749470101832,9.54643965,155.67,155.63,9.54643965]
[1749470102043,14.35323812,155.68,155.63,9.54643965]
[1749470102243,14.35323812,155.68,155.64,9.54643965]
[1749470102546,9.54643965,155.68,155.64,9.54643965]
[1749470102729,9.54643965,155.7,155.65,9.54643965]